[Event "Titled Tuesday Blitz May 24 Early 2022"]
[White "Costachi, Mihnea"]
[Black "Le, Tuan Minh"]
[WhiteFideId "1217518"]
[BlackFideId "12401153"]
[WhiteElo "2476"]
[BlackElo "2450"]
[Result "0-1"]
[Round "09"]
[TimeControl "180+1"]
[Date "2022.05.24"]
[WhiteClock "0:00:16"]
[BlackClock "0:00:21"]

1. d4 {[%clk 0:03:00]}  d5 {[%clk 0:02:57]} 2. c4 {[%clk 0:02:59]}  c6 {[%clk 0:02:58]} 3. Nf3 {[%clk 0:02:56]}  Nf6 {[%clk 0:02:58]} 4. Nc3 {[%clk 0:02:56]}  a6 {[%clk 0:02:58]} 5. cxd5 {[%clk 0:02:56]}  cxd5 {[%clk 0:02:59]} 6. Bf4 {[%clk 0:02:57]}  Nc6 {[%clk 0:02:59]} 7. e3 {[%clk 0:02:57]}  Bg4 {[%clk 0:03:00]} 8. Bd3 {[%clk 0:02:57]}  e6 {[%clk 0:03:00]} 9. O-O {[%clk 0:02:57]}  Bd6 {[%clk 0:03:00]} 10. Bg3 {[%clk 0:02:56]}  O-O {[%clk 0:02:59]} 11. Rc1 {[%clk 0:02:56]}  Rc8 {[%clk 0:02:59]} 12. h3 {[%clk 0:02:56]}  Bh5 {[%clk 0:02:26]} 13. Bh4 {[%clk 0:02:54]}  Be7 {[%clk 0:02:17]} 14. Be2 {[%clk 0:02:54]}  Bxf3 {[%clk 0:02:07]} 15. Bxf3 {[%clk 0:02:54]}  Nd7 {[%clk 0:02:08]} 16. Bg3 {[%clk 0:02:46]}  Qa5 {[%clk 0:02:04]} 17. a3 {[%clk 0:02:45]}  Rfd8 {[%clk 0:01:57]} 18. Be2 {[%clk 0:02:39]}  b5 {[%clk 0:01:52]} 19. Bd3 {[%clk 0:02:34]}  Nb6 {[%clk 0:01:47]} 20. Ra1 {[%clk 0:01:57]}  Nc4 {[%clk 0:01:45]} 21. b4 {[%clk 0:01:55]}  Qb6 {[%clk 0:01:43]} 22. Qh5 {[%clk 0:01:51]}  g6 {[%clk 0:01:43]} 23. Qe2 {[%clk 0:01:43]}  a5 {[%clk 0:01:43]} 24. a4 {[%clk 0:01:34]}  axb4 {[%clk 0:00:59]} 25. Nxb5 {[%clk 0:01:33]}  Na7 {[%clk 0:00:59]} 26. Nxa7 {[%clk 0:01:30]}  Qxa7 {[%clk 0:01:00]} 27. h4 {[%clk 0:01:23]}  h5 {[%clk 0:00:58]} 28. Bf4 {[%clk 0:01:19]}  f5 {[%clk 0:00:22]} 29. Rfc1 {[%clk 0:01:11]}  Na3 {[%clk 0:00:22]} 30. Bb5 {[%clk 0:01:05]}  Rc3 {[%clk 0:00:21]} 31. f3 {[%clk 0:00:59]}  Rdc8 {[%clk 0:00:21]} 32. Rxc3 {[%clk 0:00:59]}  bxc3 {[%clk 0:00:20]} 33. Rc1 {[%clk 0:00:48]}  c2 {[%clk 0:00:19]} 34. Qd3 {[%clk 0:00:49]}  Qa5 {[%clk 0:00:17]} 35. Bd7 {[%clk 0:00:49]}  Rc3 {[%clk 0:00:15]} 36. Bxe6+ {[%clk 0:00:49]}  Kf8 {[%clk 0:00:14]} 37. Bh6+ {[%clk 0:00:46]}  Ke8 {[%clk 0:00:13]} 38. Qe2 {[%clk 0:00:44]}  Qxa4 {[%clk 0:00:10]} 39. e4 {[%clk 0:00:43]}  Qxd4+ {[%clk 0:00:10]} 40. Kh1 {[%clk 0:00:43]}  fxe4 {[%clk 0:00:10]} 41. Qa6 {[%clk 0:00:40]}  Bd8 {[%clk 0:00:03]} 42. Qa8 {[%clk 0:00:22]}  Qd1+ {[%clk 0:00:02]} 43. Kh2 {[%clk 0:00:23]}  Qd4 {[%clk 0:00:03]} 44. Bf4 {[%clk 0:00:22]}  exf3 {[%clk 0:00:03]} 45. Bg5 {[%clk 0:00:19]}  Qe5+ {[%clk 0:00:04]} 46. Kg1 {[%clk 0:00:18]}  Qxe6 {[%clk 0:00:03]} 47. Qxd8+ {[%clk 0:00:18]}  Kf7 {[%clk 0:00:04]} 48. Qh8 {[%clk 0:00:16]}  Re3 {[%clk 0:00:04]} 49. Qh7+ {[%clk 0:00:16]}  Ke8 {[%clk 0:00:04]} 50. Qh8+ {[%clk 0:00:15]}  Kd7 {[%clk 0:00:05]} 51. Qg7+ {[%clk 0:00:14]}  Kc6 {[%clk 0:00:05]} 52. Qa7 {[%clk 0:00:13]}  Re1+ {[%clk 0:00:05]} 53. Kh2 {[%clk 0:00:13]}  Rxc1 {[%clk 0:00:06]} 54. Qa6+ {[%clk 0:00:13]}  Kd7 {[%clk 0:00:06]} 55. Qb7+ {[%clk 0:00:13]}  Ke8 {[%clk 0:00:07]} 56. Qa8+ {[%clk 0:00:10]}  Kf7 {[%clk 0:00:07]} 57. Qb7+ {[%clk 0:00:10]}  Kf8 {[%clk 0:00:07]} 58. Qb4+ {[%clk 0:00:10]}  Kg8 {[%clk 0:00:07]} 59. Qb8+ {[%clk 0:00:10]}  Kg7 {[%clk 0:00:08]} 60. Qb2+ {[%clk 0:00:09]}  Kf8 {[%clk 0:00:07]} 61. Bxc1 {[%clk 0:00:10]}  Nc4 {[%clk 0:00:06]} 62. Qh8+ {[%clk 0:00:10]}  Ke7 {[%clk 0:00:06]} 63. Bg5+ {[%clk 0:00:11]}  Kd7 {[%clk 0:00:07]} 64. Qg7+ {[%clk 0:00:07]}  Kc6 {[%clk 0:00:07]} 65. Qa1 {[%clk 0:00:07]}  Qe5+ {[%clk 0:00:08]} 66. Qxe5 {[%clk 0:00:06]}  Nxe5 {[%clk 0:00:09]} 67. Kg3 {[%clk 0:00:06]}  fxg2 {[%clk 0:00:09]} 68. Kxg2 {[%clk 0:00:07]}  Nd3 {[%clk 0:00:09]} 69. Kf3 {[%clk 0:00:06]}  Kd6 {[%clk 0:00:09]} 70. Ke2 {[%clk 0:00:06]}  c1=Q {[%clk 0:00:10]} 71. Bxc1 {[%clk 0:00:07]}  Nxc1+ {[%clk 0:00:10]} 72. Kd2 {[%clk 0:00:08]}  Nb3+ {[%clk 0:00:11]} 73. Kc3 {[%clk 0:00:08]}  Nc5 {[%clk 0:00:11]} 74. Kd4 {[%clk 0:00:09]}  Ne6+ {[%clk 0:00:12]} 75. Ke3 {[%clk 0:00:09]}  Ke5 {[%clk 0:00:13]} 76. Kf3 {[%clk 0:00:10]}  Kf5 {[%clk 0:00:14]} 77. Kg3 {[%clk 0:00:11]}  d4 {[%clk 0:00:15]} 78. Kf3 {[%clk 0:00:11]}  d3 {[%clk 0:00:15]} 79. Ke3 {[%clk 0:00:12]}  Nc5 {[%clk 0:00:16]} 80. Kd4 {[%clk 0:00:12]}  Kg4 {[%clk 0:00:17]} 81. Ke3 {[%clk 0:00:12]}  Kxh4 {[%clk 0:00:17]} 82. Kf4 {[%clk 0:00:12]}  d2 {[%clk 0:00:17]} 83. Kf3 {[%clk 0:00:13]}  d1=Q+ {[%clk 0:00:18]} 84. Kf4 {[%clk 0:00:14]}  Qd4+ {[%clk 0:00:18]} 85. Kf3 {[%clk 0:00:14]}  Qe4+ {[%clk 0:00:19]} 86. Kf2 {[%clk 0:00:15]}  Nd3+ {[%clk 0:00:19]} 87. Kg1 {[%clk 0:00:15]}  Qe1+ {[%clk 0:00:19]} 88. Kh2 {[%clk 0:00:16]}  Qg3+ {[%clk 0:00:20]} 89. Kh1 {[%clk 0:00:16]}  Nf2# {[%clk 0:00:21]} 0-1


[Site "https://www.chess.com"]

[Event "Titled Tuesday Blitz May 24 Early 2022"]
[White "Coto Mederos, Michel"]
[Black "Sokolovsky, Yahli"]
[WhiteFideId "3508528"]
[BlackFideId "2820242"]
[WhiteElo "2427"]
[BlackElo "1770"]
[Result "0-1"]
[Round "09"]
[TimeControl "180+1"]
[Date "2022.05.24"]
[WhiteClock "0:00:06"]
[BlackClock "0:00:51"]

1. d4 {[%clk 0:03:00]}  d6 {[%clk 0:03:00]} 2. c4 {[%clk 0:02:54]}  e5 {[%clk 0:03:00]} 3. Nf3 {[%clk 0:02:54]}  e4 {[%clk 0:03:00]} 4. Nfd2 {[%clk 0:02:40]}  f5 {[%clk 0:03:00]} 5. e3 {[%clk 0:02:33]}  Nf6 {[%clk 0:03:00]} 6. Nc3 {[%clk 0:02:33]}  Be7 {[%clk 0:02:59]} 7. b4 {[%clk 0:02:31]}  O-O {[%clk 0:02:52]} 8. Bb2 {[%clk 0:02:31]}  c6 {[%clk 0:02:48]} 9. d5 {[%clk 0:02:14]}  Nbd7 {[%clk 0:02:45]} 10. Nb3 {[%clk 0:02:13]}  Ne5 {[%clk 0:02:43]} 11. Be2 {[%clk 0:02:13]}  Kh8 {[%clk 0:02:27]} 12. Qd2 {[%clk 0:01:59]}  Qe8 {[%clk 0:02:20]} 13. O-O-O {[%clk 0:01:39]}  cxd5 {[%clk 0:02:11]} 14. Nxd5 {[%clk 0:01:37]}  Nxd5 {[%clk 0:02:11]} 15. Qxd5 {[%clk 0:01:25]}  Qa4 {[%clk 0:01:58]} 16. Qa5 {[%clk 0:01:23]}  Qxa5 {[%clk 0:01:53]} 17. Nxa5 {[%clk 0:01:23]}  Be6 {[%clk 0:01:41]} 18. Nxb7 {[%clk 0:00:40]}  Bxc4 {[%clk 0:01:11]} 19. Bxc4 {[%clk 0:00:17]}  Nxc4 {[%clk 0:01:12]} 20. Bc3 {[%clk 0:00:18]}  Rfc8 {[%clk 0:01:08]} 21. Kc2 {[%clk 0:00:03]}  Rab8 {[%clk 0:01:04]} 22. Na5 {[%clk 0:00:03]}  Nxa5 {[%clk 0:01:05]} 23. bxa5 {[%clk 0:00:04]}  Bf6 {[%clk 0:01:05]} 24. Rd4 {[%clk 0:00:04]}  Bxd4 {[%clk 0:01:05]} 25. exd4 {[%clk 0:00:05]}  d5 {[%clk 0:01:03]} 26. Rc1 {[%clk 0:00:04]}  Rc4 {[%clk 0:00:55]} 27. Kd2 {[%clk 0:00:04]}  Rbc8 {[%clk 0:00:55]} 28. Rc2 {[%clk 0:00:04]}  f4 {[%clk 0:00:54]} 29. g3 {[%clk 0:00:05]}  g5 {[%clk 0:00:54]} 30. Rc1 {[%clk 0:00:04]}  e3+ {[%clk 0:00:50]} 31. fxe3 {[%clk 0:00:05]}  fxe3+ {[%clk 0:00:51]} 32. Kd3 {[%clk 0:00:06]}  e2 {[%clk 0:00:51]} 0-1


[Site "https://www.chess.com"]

[Event "Titled Tuesday Blitz May 24 Early 2022"]
[White "Csonka, Balazs"]
[Black "Martin Carmona, Gaston Manuel"]
[WhiteFideId "742910"]
[BlackFideId "22284567"]
[WhiteElo "2404"]
[BlackElo "2162"]
[Result "1-0"]
[Round "09"]
[TimeControl "180+1"]
[Date "2022.05.24"]
[WhiteClock "0:00:08"]
[BlackClock "0:00:06"]

1. e4 {[%clk 0:03:00]}  c5 {[%clk 0:02:56]} 2. Nf3 {[%clk 0:02:59]}  d6 {[%clk 0:02:56]} 3. d4 {[%clk 0:02:56]}  cxd4 {[%clk 0:02:57]} 4. Nxd4 {[%clk 0:02:56]}  Nf6 {[%clk 0:02:58]} 5. Nc3 {[%clk 0:02:56]}  g6 {[%clk 0:02:58]} 6. Be3 {[%clk 0:02:51]}  Bg7 {[%clk 0:02:59]} 7. Be2 {[%clk 0:02:50]}  Nc6 {[%clk 0:02:58]} 8. Qd2 {[%clk 0:02:49]}  O-O {[%clk 0:02:58]} 9. O-O-O {[%clk 0:02:49]}  Ng4 {[%clk 0:02:46]} 10. Bxg4 {[%clk 0:02:47]}  Bxg4 {[%clk 0:02:47]} 11. f3 {[%clk 0:02:47]}  Bd7 {[%clk 0:02:47]} 12. Kb1 {[%clk 0:02:45]}  Ne5 {[%clk 0:02:44]} 13. b3 {[%clk 0:02:40]}  Rc8 {[%clk 0:02:44]} 14. h4 {[%clk 0:02:21]}  Re8 {[%clk 0:02:36]} 15. h5 {[%clk 0:02:09]}  Qa5 {[%clk 0:02:34]} 16. Nce2 {[%clk 0:01:52]}  Qxd2 {[%clk 0:02:34]} 17. Rxd2 {[%clk 0:01:52]}  b5 {[%clk 0:02:35]} 18. Nf4 {[%clk 0:01:23]}  e6 {[%clk 0:01:57]} 19. hxg6 {[%clk 0:01:13]}  hxg6 {[%clk 0:01:56]} 20. Nde2 {[%clk 0:01:10]}  Rc6 {[%clk 0:01:55]} 21. Bxa7 {[%clk 0:01:05]}  Ra8 {[%clk 0:01:44]} 22. Bd4 {[%clk 0:01:06]}  Rca6 {[%clk 0:01:44]} 23. c3 {[%clk 0:00:50]}  Bf6 {[%clk 0:01:08]} 24. Nd3 {[%clk 0:00:41]}  Kg7 {[%clk 0:00:55]} 25. Nxe5 {[%clk 0:00:36]}  dxe5 {[%clk 0:00:50]} 26. Be3 {[%clk 0:00:35]}  Bc6 {[%clk 0:00:50]} 27. Nc1 {[%clk 0:00:34]}  Be7 {[%clk 0:00:44]} 28. Nd3 {[%clk 0:00:33]}  Ra5 {[%clk 0:00:32]} 29. Nxe5 {[%clk 0:00:30]}  Be8 {[%clk 0:00:31]} 30. Bd4 {[%clk 0:00:25]}  Bf6 {[%clk 0:00:31]} 31. Nd3 {[%clk 0:00:22]}  Bxd4 {[%clk 0:00:16]} 32. cxd4 {[%clk 0:00:23]}  R5a7 {[%clk 0:00:16]} 33. Nb4 {[%clk 0:00:23]}  Rd8 {[%clk 0:00:14]} 34. d5 {[%clk 0:00:23]}  exd5 {[%clk 0:00:15]} 35. exd5 {[%clk 0:00:22]}  Bd7 {[%clk 0:00:15]} 36. Kb2 {[%clk 0:00:21]}  Rc7 {[%clk 0:00:14]} 37. Rc1 {[%clk 0:00:21]}  Rxc1 {[%clk 0:00:14]} 38. Kxc1 {[%clk 0:00:22]}  g5 {[%clk 0:00:14]} 39. Kb2 {[%clk 0:00:21]}  Kf6 {[%clk 0:00:13]} 40. Kc3 {[%clk 0:00:21]}  Ke5 {[%clk 0:00:13]} 41. Re2+ {[%clk 0:00:21]}  Kf4 {[%clk 0:00:13]} 42. Kd4 {[%clk 0:00:20]}  f5 {[%clk 0:00:14]} 43. d6 {[%clk 0:00:16]}  Be8 {[%clk 0:00:12]} 44. Kc5 {[%clk 0:00:13]}  g4 {[%clk 0:00:11]} 45. Nd5+ {[%clk 0:00:12]}  Kg3 {[%clk 0:00:10]} 46. fxg4 {[%clk 0:00:12]}  fxg4 {[%clk 0:00:10]} 47. Nf6 {[%clk 0:00:12]}  Bg6 {[%clk 0:00:09]} 48. d7 {[%clk 0:00:10]}  Bf5 {[%clk 0:00:08]} 49. Kd6 {[%clk 0:00:10]}  Bxd7 {[%clk 0:00:04]} 50. Nxd7 {[%clk 0:00:11]}  Rh8 {[%clk 0:00:04]} 51. Kc5 {[%clk 0:00:09]}  Rh2 {[%clk 0:00:04]} 52. Ne5 {[%clk 0:00:08]}  Rxg2 {[%clk 0:00:05]} 53. Rxg2+ {[%clk 0:00:08]}  Kxg2 {[%clk 0:00:06]} 54. Nxg4 {[%clk 0:00:08]} 1-0


[Site "https://www.chess.com"]

[Event "Titled Tuesday Blitz May 24 Early 2022"]
[White "Dahlgren, James Allen"]
[Black "Roman, Rodrigo"]
[WhiteFideId "22256873"]
[BlackFideId "3701220"]
[WhiteElo "2073"]
[BlackElo "2001"]
[Result "1-0"]
[Round "09"]
[TimeControl "180+1"]
[Date "2022.05.25"]
[WhiteClock "0:00:05"]
[BlackClock "0:00:16"]

1. d3 {[%clk 0:03:00]}  c5 {[%clk 0:02:59]} 2. f4 {[%clk 0:02:53]}  Nc6 {[%clk 0:02:56]} 3. Nf3 {[%clk 0:02:54]}  d5 {[%clk 0:02:55]} 4. g3 {[%clk 0:02:54]}  Nf6 {[%clk 0:02:55]} 5. Bg2 {[%clk 0:02:55]}  h5 {[%clk 0:02:55]} 6. O-O {[%clk 0:02:56]}  Bg4 {[%clk 0:02:49]} 7. Nc3 {[%clk 0:02:56]}  e6 {[%clk 0:02:45]} 8. h3 {[%clk 0:02:53]}  Bxf3 {[%clk 0:02:45]} 9. Bxf3 {[%clk 0:02:54]}  h4 {[%clk 0:02:46]} 10. g4 {[%clk 0:02:54]}  Nd4 {[%clk 0:02:46]} 11. Bg2 {[%clk 0:02:54]}  Bd6 {[%clk 0:02:45]} 12. e3 {[%clk 0:02:53]}  Nc6 {[%clk 0:02:24]} 13. e4 {[%clk 0:02:54]}  d4 {[%clk 0:02:07]} 14. Ne2 {[%clk 0:02:51]}  e5 {[%clk 0:01:58]} 15. f5 {[%clk 0:02:44]}  Nh7 {[%clk 0:01:47]} 16. c4 {[%clk 0:02:38]}  Be7 {[%clk 0:01:47]} 17. a3 {[%clk 0:02:28]}  Bg5 {[%clk 0:01:46]} 18. Rb1 {[%clk 0:02:25]}  a5 {[%clk 0:01:46]} 19. Qa4 {[%clk 0:02:25]}  Ra6 {[%clk 0:01:43]} 20. Qb5 {[%clk 0:02:11]}  Qb6 {[%clk 0:01:39]} 21. Rd1 {[%clk 0:01:31]}  Kd7 {[%clk 0:01:39]} 22. Kf2 {[%clk 0:01:27]}  Kd6 {[%clk 0:01:39]} 23. Bf1 {[%clk 0:01:22]}  a4 {[%clk 0:01:38]} 24. b4 {[%clk 0:01:13]}  Na7 {[%clk 0:01:20]} 25. bxc5+ {[%clk 0:01:06]}  Qxc5 {[%clk 0:01:20]} 26. Qxb7 {[%clk 0:01:00]}  Rc6 {[%clk 0:00:54]} 27. Bd2 {[%clk 0:00:32]}  Bxd2 {[%clk 0:00:50]} 28. Rxd2 {[%clk 0:00:32]}  Rc7 {[%clk 0:00:39]} 29. Rb6+ {[%clk 0:00:30]}  Kd7 {[%clk 0:00:37]} 30. Qa6 {[%clk 0:00:25]}  Nc6 {[%clk 0:00:36]} 31. Rdb2 {[%clk 0:00:19]}  Qxa3 {[%clk 0:00:30]} 32. Rxc6 {[%clk 0:00:12]}  Rxc6 {[%clk 0:00:29]} 33. Rb7+ {[%clk 0:00:12]}  Kd6 {[%clk 0:00:23]} 34. Qa7 {[%clk 0:00:04]}  Rd8 {[%clk 0:00:16]} 35. Rxf7 {[%clk 0:00:05]}  Ng5 {[%clk 0:00:16]} 36. Qe7# {[%clk 0:00:05]} 1-0


[Site "https://www.chess.com"]

[Event "Titled Tuesday Blitz May 24 Early 2022"]
[White "Dimitrov, Atanas"]
[Black "Perez Rodriguez, Jennifer"]
[WhiteFideId "2901315"]
[BlackFideId "3507831"]
[WhiteElo "2670"]
[BlackElo "2170"]
[Result "1-0"]
[Round "09"]
[TimeControl "180+1"]
[Date "2022.05.25"]
[WhiteClock "0:03:00"]
[BlackClock "0:02:58"]

1. Nf3 {[%clk 0:03:00]}  Nf6 {[%clk 0:02:58]} 2. c4 {[%clk 0:03:01]}  c5 {[%clk 0:02:57]} 3. g3 {[%clk 0:03:00]}  b6 {[%clk 0:02:58]} 4. Bg2 {[%clk 0:03:01]}  Bb7 {[%clk 0:02:59]} 5. O-O {[%clk 0:03:01]}  e6 {[%clk 0:02:59]} 6. Nc3 {[%clk 0:03:02]}  Be7 {[%clk 0:03:00]} 7. b3 {[%clk 0:03:02]}  O-O {[%clk 0:02:59]} 8. Bb2 {[%clk 0:03:02]}  d6 {[%clk 0:02:58]} 9. d4 {[%clk 0:03:01]}  cxd4 {[%clk 0:02:58]} 10. Nxd4 {[%clk 0:03:01]}  Nbd7 {[%clk 0:02:58]} 11. Bxb7 {[%clk 0:03:00]} 1-0


[Site "https://www.chess.com"]

[Event "Titled Tuesday Blitz May 24 Early 2022"]
[White "Djokic, Mihailo"]
[Black "Bryakin, Mikhail"]
[WhiteFideId "976440"]
[BlackFideId "4165314"]
[WhiteElo "2202"]
[BlackElo "2417"]
[Result "1-0"]
[Round "09"]
[TimeControl "180+1"]
[Date "2022.05.24"]
[WhiteClock "0:00:06"]
[BlackClock "0:00:04"]

1. e4 {[%clk 0:03:00]}  e5 {[%clk 0:02:48]} 2. Nf3 {[%clk 0:02:58]}  d5 {[%clk 0:02:38]} 3. Nxe5 {[%clk 0:02:58]}  dxe4 {[%clk 0:02:36]} 4. d4 {[%clk 0:02:54]}  Be6 {[%clk 0:02:35]} 5. Nc3 {[%clk 0:02:51]}  Nf6 {[%clk 0:02:24]} 6. Bc4 {[%clk 0:02:35]}  Bxc4 {[%clk 0:02:20]} 7. Nxc4 {[%clk 0:02:34]}  Be7 {[%clk 0:02:06]} 8. O-O {[%clk 0:02:28]}  O-O {[%clk 0:01:58]} 9. a3 {[%clk 0:02:12]}  Nc6 {[%clk 0:01:27]} 10. d5 {[%clk 0:02:11]}  b5 {[%clk 0:01:28]} 11. dxc6 {[%clk 0:02:05]}  bxc4 {[%clk 0:01:28]} 12. Qe2 {[%clk 0:02:05]}  Qd4 {[%clk 0:01:24]} 13. Be3 {[%clk 0:02:03]}  Qe5 {[%clk 0:01:25]} 14. Qxc4 {[%clk 0:02:03]}  Bd6 {[%clk 0:01:25]} 15. g3 {[%clk 0:02:02]}  Qh5 {[%clk 0:01:15]} 16. Nxe4 {[%clk 0:01:58]}  Ng4 {[%clk 0:01:14]} 17. h4 {[%clk 0:01:52]}  Nxe3 {[%clk 0:00:56]} 18. fxe3 {[%clk 0:01:51]}  Be5 {[%clk 0:00:56]} 19. c3 {[%clk 0:01:05]}  Rad8 {[%clk 0:00:45]} 20. Rf2 {[%clk 0:00:59]}  Qg6 {[%clk 0:00:28]} 21. Kg2 {[%clk 0:00:55]}  Kh8 {[%clk 0:00:19]} 22. Raf1 {[%clk 0:00:52]}  f5 {[%clk 0:00:19]} 23. Ng5 {[%clk 0:00:48]}  h6 {[%clk 0:00:20]} 24. Qe6 {[%clk 0:00:40]}  Rf6 {[%clk 0:00:15]} 25. Qxe5 {[%clk 0:00:40]}  hxg5 {[%clk 0:00:15]} 26. h5 {[%clk 0:00:37]}  Qf7 {[%clk 0:00:12]} 27. Rxf5 {[%clk 0:00:33]}  Rd2+ {[%clk 0:00:12]} 28. Kg1 {[%clk 0:00:31]}  Qxh5 {[%clk 0:00:12]} 29. R5f2 {[%clk 0:00:11]}  Rdxf2 {[%clk 0:00:03]} 30. Rxf2 {[%clk 0:00:11]}  Rh6 {[%clk 0:00:04]} 31. Rf8+ {[%clk 0:00:09]}  Kh7 {[%clk 0:00:04]} 32. Qe4+ {[%clk 0:00:08]}  Rg6 {[%clk 0:00:05]} 33. Qh1 {[%clk 0:00:08]}  Qxh1+ {[%clk 0:00:04]} 34. Kxh1 {[%clk 0:00:09]}  Rxc6 {[%clk 0:00:05]} 35. Ra8 {[%clk 0:00:08]}  Rb6 {[%clk 0:00:05]} 36. b4 {[%clk 0:00:06]}  Rc6 {[%clk 0:00:05]} 37. Rxa7 {[%clk 0:00:06]}  Rxc3 {[%clk 0:00:05]} 38. e4 {[%clk 0:00:07]}  Rxg3 {[%clk 0:00:05]} 39. a4 {[%clk 0:00:06]}  Rb3 {[%clk 0:00:04]} 40. b5 {[%clk 0:00:06]}  Rb4 {[%clk 0:00:05]} 41. e5 {[%clk 0:00:04]}  Re4 {[%clk 0:00:04]} 42. Rxc7 {[%clk 0:00:03]}  Rxa4 {[%clk 0:00:04]} 43. b6 {[%clk 0:00:03]}  Rb4 {[%clk 0:00:04]} 44. b7 {[%clk 0:00:03]}  Kg6 {[%clk 0:00:05]} 45. e6 {[%clk 0:00:04]}  Kf6 {[%clk 0:00:05]} 46. e7 {[%clk 0:00:04]}  Rb1+ {[%clk 0:00:06]} 47. Kg2 {[%clk 0:00:04]}  Rb2+ {[%clk 0:00:07]} 48. Kf3 {[%clk 0:00:04]}  Rb3+ {[%clk 0:00:07]} 49. Ke4 {[%clk 0:00:05]}  Rb1 {[%clk 0:00:07]} 50. Kd5 {[%clk 0:00:02]}  Kf7 {[%clk 0:00:06]} 51. Rc8 {[%clk 0:00:02]}  Kxe7 {[%clk 0:00:02]} 52. b8=Q {[%clk 0:00:03]}  Rxb8 {[%clk 0:00:03]} 53. Rxb8 {[%clk 0:00:04]}  Kf6 {[%clk 0:00:04]} 54. Ke4 {[%clk 0:00:05]}  Kg6 {[%clk 0:00:04]} 55. Kf3 {[%clk 0:00:06]}  Kh5 {[%clk 0:00:04]} 56. Kg3 {[%clk 0:00:06]} 1-0


[Site "https://www.chess.com"]

[Event "Titled Tuesday Blitz May 24 Early 2022"]
[White "Dmitrenko, Viktor"]
[Black "Makhnev, Denis"]
[WhiteFideId "14110270"]
[BlackFideId "13707647"]
[WhiteElo "2218"]
[BlackElo "2501"]
[Result "0-1"]
[Round "09"]
[TimeControl "180+1"]
[Date "2022.05.24"]
[WhiteClock "0:00:03"]
[BlackClock "0:00:03"]

1. d4 {[%clk 0:02:55]}  Nf6 {[%clk 0:02:59]} 2. c4 {[%clk 0:02:54]}  e6 {[%clk 0:02:58]} 3. Nc3 {[%clk 0:02:54]}  Bb4 {[%clk 0:02:57]} 4. e3 {[%clk 0:02:54]}  O-O {[%clk 0:02:57]} 5. Ne2 {[%clk 0:02:50]}  c6 {[%clk 0:02:49]} 6. a3 {[%clk 0:02:49]}  Ba5 {[%clk 0:02:49]} 7. g3 {[%clk 0:02:44]}  d5 {[%clk 0:02:39]} 8. c5 {[%clk 0:02:42]}  Bxc3+ {[%clk 0:02:31]} 9. Nxc3 {[%clk 0:02:40]}  b6 {[%clk 0:02:31]} 10. b4 {[%clk 0:02:38]}  a5 {[%clk 0:02:31]} 11. Bd2 {[%clk 0:02:34]}  Ba6 {[%clk 0:02:21]} 12. Bxa6 {[%clk 0:02:30]}  Nxa6 {[%clk 0:02:21]} 13. Na4 {[%clk 0:02:27]}  bxc5 {[%clk 0:02:05]} 14. bxc5 {[%clk 0:02:21]}  e5 {[%clk 0:01:49]} 15. O-O {[%clk 0:02:14]}  Re8 {[%clk 0:01:46]} 16. Nb6 {[%clk 0:02:12]}  Ra7 {[%clk 0:01:46]} 17. f3 {[%clk 0:02:01]}  Nc7 {[%clk 0:01:40]} 18. a4 {[%clk 0:01:57]}  h5 {[%clk 0:01:18]} 19. Kg2 {[%clk 0:01:55]}  Nd7 {[%clk 0:01:07]} 20. Bc3 {[%clk 0:01:50]}  exd4 {[%clk 0:00:54]} 21. exd4 {[%clk 0:01:48]}  Ne6 {[%clk 0:00:50]} 22. Rb1 {[%clk 0:01:38]}  h4 {[%clk 0:00:50]} 23. Qd2 {[%clk 0:01:35]}  Qf6 {[%clk 0:00:40]} 24. Rfe1 {[%clk 0:01:28]}  Qg6 {[%clk 0:00:39]} 25. Nxd7 {[%clk 0:01:21]}  Rxd7 {[%clk 0:00:39]} 26. Bxa5 {[%clk 0:01:18]}  Ra7 {[%clk 0:00:37]} 27. Bc3 {[%clk 0:00:35]}  Rxa4 {[%clk 0:00:36]} 28. Ra1 {[%clk 0:00:36]}  Rc4 {[%clk 0:00:34]} 29. Kh3 {[%clk 0:00:11]}  Rb8 {[%clk 0:00:23]} 30. Re5 {[%clk 0:00:09]}  f6 {[%clk 0:00:17]} 31. Re3 {[%clk 0:00:06]}  Qf5+ {[%clk 0:00:17]} 32. Kg2 {[%clk 0:00:04]}  h3+ {[%clk 0:00:17]} 33. Kf2 {[%clk 0:00:03]}  Ng5 {[%clk 0:00:17]} 34. Qd3 {[%clk 0:00:01]}  Qxd3 {[%clk 0:00:07]} 35. Rxd3 {[%clk 0:00:02]}  Rb3 {[%clk 0:00:08]} 36. Rc1 {[%clk 0:00:02]}  Ra3 {[%clk 0:00:05]} 37. Ke3 {[%clk 0:00:02]}  Ra2 {[%clk 0:00:05]} 38. Bd2 {[%clk 0:00:02]}  Rxc1 {[%clk 0:00:02]} 39. Bxc1 {[%clk 0:00:03]}  Rxh2 {[%clk 0:00:03]} 40. Rd1 {[%clk 0:00:03]}  Rg2 {[%clk 0:00:03]} 0-1


[Site "https://www.chess.com"]

[Event "Titled Tuesday Blitz May 24 Early 2022"]
[White "Dobre, Claudiu-Cristian"]
[Black "Ramirez Vido, Robert Yorisan"]
[WhiteFideId "1211854"]
[BlackFideId "3513823"]
[WhiteElo "2207"]
[BlackElo "2361"]
[Result "0-1"]
[Round "09"]
[TimeControl "180+1"]
[Date "2022.05.25"]
[WhiteClock "0:00:14"]
[BlackClock "0:00:10"]

1. c4 {[%clk 0:03:00]}  g6 {[%clk 0:02:57]} 2. Nf3 {[%clk 0:03:00]}  Nf6 {[%clk 0:02:57]} 3. Nc3 {[%clk 0:02:59]}  Bg7 {[%clk 0:02:57]} 4. d4 {[%clk 0:02:59]}  O-O {[%clk 0:02:57]} 5. e4 {[%clk 0:02:59]}  d6 {[%clk 0:02:57]} 6. Be2 {[%clk 0:02:59]}  Na6 {[%clk 0:02:57]} 7. O-O {[%clk 0:02:57]}  e5 {[%clk 0:02:58]} 8. dxe5 {[%clk 0:02:58]}  dxe5 {[%clk 0:02:58]} 9. Be3 {[%clk 0:02:53]}  c6 {[%clk 0:02:50]} 10. h3 {[%clk 0:02:52]}  Qe7 {[%clk 0:02:43]} 11. Qc1 {[%clk 0:02:44]}  Rd8 {[%clk 0:02:35]} 12. Nd2 {[%clk 0:02:33]}  Nc5 {[%clk 0:02:32]} 13. Qc2 {[%clk 0:02:28]}  Ne6 {[%clk 0:02:32]} 14. Rfc1 {[%clk 0:01:42]}  Nd4 {[%clk 0:02:32]} 15. Qd1 {[%clk 0:01:43]}  Nd7 {[%clk 0:02:22]} 16. Na4 {[%clk 0:01:36]}  Nf8 {[%clk 0:02:14]} 17. c5 {[%clk 0:01:31]}  Nfe6 {[%clk 0:01:57]} 18. b4 {[%clk 0:01:29]}  Nf4 {[%clk 0:01:55]} 19. Bf1 {[%clk 0:01:27]}  Qg5 {[%clk 0:01:43]} 20. Kh2 {[%clk 0:01:25]}  Qh6 {[%clk 0:01:02]} 21. Nf3 {[%clk 0:01:05]}  Be6 {[%clk 0:00:43]} 22. Nxd4 {[%clk 0:01:02]}  exd4 {[%clk 0:00:42]} 23. Bd2 {[%clk 0:01:02]}  Be5 {[%clk 0:00:37]} 24. Kh1 {[%clk 0:00:51]}  g5 {[%clk 0:00:32]} 25. Bxf4 {[%clk 0:00:34]}  Bxf4 {[%clk 0:00:31]} 26. Rc2 {[%clk 0:00:26]}  g4 {[%clk 0:00:28]} 27. Bd3 {[%clk 0:00:25]}  gxh3 {[%clk 0:00:28]} 28. g3 {[%clk 0:00:25]}  Be5 {[%clk 0:00:23]} 29. Kh2 {[%clk 0:00:25]}  Qf6 {[%clk 0:00:21]} 30. f4 {[%clk 0:00:22]}  Bxf4 {[%clk 0:00:21]} 31. Rf2 {[%clk 0:00:21]}  Bxg3+ {[%clk 0:00:21]} 32. Kxg3 {[%clk 0:00:22]}  Qe5+ {[%clk 0:00:19]} 33. Rf4 {[%clk 0:00:21]}  Kh8 {[%clk 0:00:18]} 34. Qf3 {[%clk 0:00:18]}  Rg8+ {[%clk 0:00:18]} 35. Kh2 {[%clk 0:00:19]}  Rg2+ {[%clk 0:00:17]} 36. Kh1 {[%clk 0:00:19]}  Rd2 {[%clk 0:00:14]} 37. Bf1 {[%clk 0:00:16]}  h5 {[%clk 0:00:11]} 38. Rf6 {[%clk 0:00:14]}  Qh2# {[%clk 0:00:10]} 0-1


[Site "https://www.chess.com"]